bitfinex/quotes_BTCUSD_20230831
["timestamp","ask_amount","ask_price","bid_price","bid_amount"]
[1693499437347,0.001,26690.0,26687.0,0.87793532]
[1693499437561,1.30611322,26688.0,26687.0,0.87793532]
[1693499437793,1.30611322,26688.0,26687.0,0.84093532]
[1693499438011,1.30611322,26688.0,26687.0,1.19109659]
[1693499438222,1.30611322,26688.0,26687.0,0.87793532]
[1693499438443,1.69379407,26688.0,26687.0,0.87793532]
[1693499438645,1.34474286,26688.0,26687.0,0.87793532]
[1693499438855,1.81242371,26688.0,26687.0,0.68683532]
[1693499439079,2.27949605,26688.0,26687.0,0.68683532]
[1693499439291,2.27949605,26688.0,26665.0,0.00221]
[1693499439292,1.32611322,26671.0,26670.0,0.00167795]
[1693499439509,1.32611322,26671.0,26670.0,0.3693588]
[1693499439510,1.44026238,26671.0,26670.0,0.3693588]
[1693499439716,1.43632238,26671.0,26670.0,0.3693588]
[1693499439931,1.43632238,26671.0,26670.0,0.00167795]
[1693499440138,1.46639556,26671.0,26670.0,0.30432101]
[1693499440356,0.09007318,26662.0,26661.0,0.00828762]
[1693499440594,0.70482637,26662.0,26661.0,0.00828762]
[1693499440818,0.89823401,26662.0,26661.0,0.00828762]
[1693499441243,0.09007318,26662.0,26661.0,0.00828762]
[1693499441478,0.09007318,26662.0,26661.0,0.37596847]
[1693499441479,0.06,26662.0,26661.0,0.37596847]
[1693499441712,0.08507318,26662.0,26661.0,0.00828762]
[1693499441922,0.08507318,26662.0,26659.0,0.91002867]
[1693499441923,1.43432322,26660.0,26659.0,0.91002867]
[1693499442130,1.96907641,26660.0,26659.0,0.91002867]
[1693499442344,1.96907641,26660.0,26658.0,0.39]
[1693499442345,0.26507318,26659.0,26658.0,0.39]
[1693499442558,0.48548132,26654.0,26650.0,0.001]
[1693499442793,1.03475319,26659.0,26637.0,0.0110615]
[1693499442794,1.44495454,26639.0,26637.0,0.0110615]
[1693499443011,1.44495454,26639.0,26629.0,0.09557571]
[1693499443013,1.44378454,26634.0,26629.0,0.09557571]
[1693499443221,1.44378454,26634.0,26626.0,0.0452877]
[1693499443222,0.26308318,26627.0,26626.0,0.0452877]
[1693499443438,0.26308318,26627.0,26622.0,0.0156]
[1693499443439,1.94271454,26623.0,26622.0,0.0156]
[1693499443654,0.16,26621.0,26618.0,0.00063138]
[1693499443867,0.16,26621.0,26607.0,0.045405]
[1693499443868,0.36768085,26621.0,26611.0,0.04832347]
[1693499444120,0.19218809,26628.0,26611.0,0.04832347]
[1693499444121,0.03187212,26628.0,26618.0,0.00214]
[1693499444351,0.11645667,26633.0,26630.0,0.00214]
[1693499444557,0.88872402,26642.0,26638.0,0.00214]
[1693499444558,0.0865427,26642.0,26638.0,0.00214]
[1693499444777,0.0865427,26642.0,26631.0,0.14707234]
[1693499444778,0.03517942,26635.0,26631.0,0.14707234]
[1693499444990,0.015,26633.0,26631.0,0.14707234]
[1693499445203,0.55303074,26635.0,26631.0,0.14707234]
[1693499445204,0.36768085,26632.0,26631.0,0.154291]
[1693499445410,0.49984074,26635.0,26628.0,0.00696]
[1693499445411,0.03517942,26635.0,26628.0,0.00696]
[1693499445621,0.03517942,26635.0,26629.0,0.36768085]
[1693499445831,0.03517942,26635.0,26634.0,0.0444994]
[1693499446040,0.015,26647.0,26642.0,0.00696]
[1693499446250,0.015,26647.0,26634.0,0.51475319]
[1693499446251,0.07575,26649.0,26646.0,0.00214]
[1693499446465,0.07575,26649.0,26625.0,0.09]
[1693499446466,0.01541765,26635.0,26625.0,0.09]
[1693499446731,0.36768085,26635.0,26632.0,0.03717291]
[1693499446962,0.11061895,26644.0,26638.0,0.00696]
[1693499447163,0.11061895,26644.0,26637.0,0.0295094]
[1693499447164,0.28885897,26649.0,26642.0,0.02466]
[1693499447378,1.42742961,26644.0,26643.0,0.14707234]
[1693499447591,0.01697,26626.0,26623.0,0.06183291]
[1693499447801,0.01697,26626.0,26621.0,0.01712175]
[1693499447802,0.69325004,26631.0,26621.0,0.02466]
[1693499448010,0.72563769,26631.0,26628.0,0.02466]
[1693499448232,1.08571769,26649.0,26632.0,0.02466]
[1693499448444,1.08571769,26649.0,26639.0,0.3013]
[1693499448445,0.72563769,26643.0,26639.0,0.3013]
[1693499448658,2.03238765,26648.0,26644.0,0.0017]
[1693499448870,0.01541765,26648.0,26645.0,0.51475319]
[1693499449085,0.02,26653.0,26645.0,0.51475319]
[1693499449086,0.21466132,26654.0,26649.0,0.0017]
[1693499449304,0.21466132,26654.0,26650.0,0.51475319]
[1693499449305,0.01541765,26653.0,26650.0,0.51475319]
[1693499449528,0.24393135,26652.0,26650.0,0.56622851]
[1693499449734,0.69325004,26661.0,26660.0,0.0341694]
[1693499449952,0.69325004,26664.0,26663.0,0.00042378]
[1693499450166,0.23007897,26667.0,26663.0,0.51517697]
[1693499450167,0.70866769,26667.0,26663.0,0.51517697]
[1693499450383,0.70866769,26667.0,26664.0,0.59670389]
[1693499450602,0.70866769,26667.0,26664.0,0.14707234]
[1693499450603,0.01541765,26665.0,26664.0,0.14707234]
[1693499450833,0.69325004,26661.0,26659.0,0.00042378]
[1693499451034,0.69325004,26661.0,26660.0,0.36768085]
[1693499451467,0.69325004,26661.0,26649.0,0.11403442]
[1693499451468,0.69325004,26650.0,26649.0,0.11403442]
[1693499451707,0.01541765,26652.0,26649.0,0.36810463]
[1693499451918,0.69325004,26653.0,26652.0,0.00042378]
[1693499452148,0.04,26663.0,26654.0,0.00042378]
[1693499452353,0.17447622,26667.0,26662.0,0.36768085]
[1693499452354,0.69325004,26665.0,26662.0,0.36768085]
[1693499452566,0.69325004,26665.0,26663.0,0.14707234]
[1693499452567,0.01541765,26664.0,26663.0,0.14707234]
[1693499452773,0.70866769,26665.0,26663.0,0.51475319]
[1693499452985,0.70866769,26665.0,26650.0,0.03717291]
[1693499452986,0.01541765,26659.0,26650.0,0.03717291]
[1693499453210,0.02,26665.0,26639.0,0.00303]
[1693499453211,0.01541765,26641.0,26640.0,0.03013]
[1693499453433,0.92791136,26642.0,26636.0,0.18771]
[1693499453434,0.96029901,26637.0,26636.0,0.18771]
[1693499453646,0.96029901,26637.0,26630.0,0.00042378]
[1693499453647,0.90791136,26637.0,26631.0,0.00042378]
[1693499453861,0.01697,26640.0,26626.0,0.30588235]
[1693499453862,0.94332901,26640.0,26637.0,0.00042378]
[1693499454066,0.03541765,26639.0,26637.0,0.39202378]
[1693499454316,0.90791136,26640.0,26636.0,0.36768085]
[1693499454317,0.94332901,26640.0,26638.0,0.83567509]
[1693499454520,0.94332901,26640.0,26639.0,0.75928085]
[1693499455147,1.22775418,26640.0,26639.0,0.75928085]
[1693499455361,0.96029901,26640.0,26639.0,0.75928085]
[1693499455573,1.18993338,26640.0,26639.0,0.36768085]
[1693499455785,1.18723147,26640.0,26639.0,0.36768085]
[1693499456234,0.94332901,26640.0,26639.0,0.40444894]
[1693499456470,0.94332901,26640.0,26639.0,0.79604894]
[1693499456678,0.94332901,26640.0,26639.0,0.79563086]
[1693499456929,0.21466132,26644.0,26641.0,0.00042378]
[1693499457137,0.23007897,26644.0,26643.0,0.75928085]
[1693499457347,0.25007897,26644.0,26643.0,0.84995855]
[1693499457549,0.21466132,26644.0,26643.0,0.99745467]
[1693499457762,0.01541765,26645.0,26644.0,0.00042378]
[1693499457972,0.01541765,26645.0,26644.0,0.36768085]
[1693499457973,0.05238765,26645.0,26644.0,0.36768085]
[1693499458189,0.05238765,26645.0,26644.0,0.75928085]
[1693499458399,0.90791136,26647.0,26644.0,0.75970463]
[1693499458611,0.90791136,26647.0,26646.0,0.75970463]
[1693499459018,0.03957622,26654.0,26646.0,0.75970463]
[1693499459019,0.71325004,26654.0,26652.0,0.00042378]
[1693499459236,0.01541765,26653.0,26652.0,0.00042378]
[1693499459873,0.01541765,26653.0,26649.0,0.39463]
[1693499459874,0.25007897,26652.0,26649.0,0.3916]
[1693499460073,0.23007897,26652.0,26651.0,0.3916]
[1693499460278,0.2650988,26652.0,26651.0,0.75928085]
[1693499460494,0.2820688,26652.0,26651.0,0.36768085]
[1693499460700,0.2820688,26652.0,26649.0,0.3916]
[1693499460701,0.76065752,26650.0,26649.0,0.3916]
[1693499460907,0.06740748,26645.0,26644.0,0.034]
[1693499461113,0.06740748,26645.0,26644.0,0.36768085]
[1693499461319,1.58,26645.0,26644.0,0.36768085]
[1693499461528,1.58,26645.0,26644.0,0.75928085]
[1693499461748,1.02,26640.0,26632.0,0.3013]
[1693499462007,1.02,26640.0,26636.0,0.36768085]
[1693499462156,1.02,26640.0,26637.0,0.36768085]
[1693499462357,1.02,26640.0,26639.0,0.36768085]
[1693499462564,1.04,26640.0,26639.0,0.75928085]
[1693499462763,1.06,26640.0,26639.0,0.75928085]
[1693499463386,1.02,26643.0,26639.0,1.06058085]
[1693499463600,0.02,26650.0,26633.0,0.2546]
[1693499463601,0.02,26663.0,26642.0,1.06058085]
[1693499463809,0.02,26652.0,26651.0,0.75928085]
[1693499464433,0.02,26659.0,26652.0,0.07592809]
[1693499464434,1.54,26659.0,26652.0,0.07592809]
[1693499464645,0.02,26664.0,26652.0,0.07592809]
[1693499464646,1.5,26662.0,26655.0,0.3916]
[1693499464859,0.06,26664.0,26658.0,0.3916]
[1693499465078,0.06,26664.0,26663.0,0.75928085]
[1693499465276,0.06,26664.0,26663.0,0.90635319]
[1693499465483,0.06,26664.0,26663.0,1.01698851]
[1693499465716,0.04,26670.0,26663.0,1.46730651]
[1693499465717,1.0,26668.0,26663.0,1.46730651]
[1693499465919,0.06,26670.0,26667.0,0.75928085]
[1693499466124,1.0,26671.0,26669.0,0.75928085]
[1693499466335,0.5204,26672.0,26669.0,0.75928085]
[1693499466336,0.0204,26672.0,26669.0,0.75928085]
[1693499466573,0.0204,26672.0,26671.0,0.3916]
[1693499466807,0.0207,26676.0,26671.0,0.3916]
[1693499466808,0.0207,26676.0,26671.0,0.4116]
[1693499467038,0.0207,26676.0,26675.0,0.36768085]
[1693499467299,0.0207,26676.0,26675.0,0.51475319]
[1693499467510,0.0207,26676.0,26675.0,0.77928085]
[1693499467744,0.0207,26676.0,26675.0,0.88722894]
[1693499467945,0.0207,26676.0,26675.0,0.87722894]
[1693499468161,0.52,26672.0,26666.0,0.02076]
[1693499468385,0.52,26672.0,26664.0,0.3002]
[1693499468386,1.51303451,26669.0,26668.0,0.36768085]
[1693499468835,0.02,26665.0,26657.0,0.3002]
[1693499469058,0.02,26665.0,26636.0,0.5]
[1693499469059,0.93303451,26659.0,26654.0,0.3002]
[1693499469265,0.93303451,26659.0,26658.0,0.36768085]
[1693499469476,0.93265951,26659.0,26658.0,0.36768085]
[1693499469677,1.49228451,26655.0,26652.0,0.01120739]
[1693499469882,0.04,26659.0,26643.0,0.3002]
[1693499469883,0.93228451,26649.0,26643.0,0.3002]
[1693499470120,0.93228451,26649.0,26641.0,0.020375]
[1693499470121,0.97190951,26649.0,26645.0,0.36768085]
[1693499470330,0.97190951,26649.0,26647.0,0.36768085]
[1693499471402,0.04,26655.0,26629.0,0.6812]
[1693499471403,0.039625,26637.0,26629.0,0.6812]
[1693499471612,0.039625,26637.0,26636.0,0.36768085]
[1693499471828,0.04,26644.0,26636.0,0.36768085]
[1693499471829,1.43228451,26642.0,26636.0,0.36768085]
[1693499472055,1.43228451,26642.0,26634.0,0.02]
[1693499472056,1.47190951,26642.0,26641.0,0.36768085]
[1693499472283,1.47190951,26645.0,26641.0,1.09624894]
[1693499472485,1.47190951,26645.0,26644.0,0.36768085]
[1693499472695,1.46690951,26645.0,26644.0,0.36768085]
[1693499472920,1.42728451,26645.0,26644.0,0.36768085]
[1693499473136,1.42728451,26645.0,26644.0,0.40444894]
[1693499473572,1.42728451,26645.0,26644.0,0.36768085]
[1693499473573,1.78216733,26645.0,26644.0,0.36768085]
[1693499473784,1.78216733,26645.0,26644.0,0.150242]
[1693499474423,1.48690951,26645.0,26644.0,0.51792285]
[1693499474636,1.46690951,26645.0,26644.0,0.56971514]
[1693499474866,1.46690951,26648.0,26644.0,0.71678748]
[1693499475091,1.46690951,26648.0,26647.0,0.36768085]
[1693499475312,1.48690951,26648.0,26647.0,0.36768085]
[1693499475734,1.48690951,26645.0,26644.0,0.150242]
[1693499475968,1.48690951,26645.0,26644.0,0.55492285]
[1693499476185,1.60690951,26645.0,26644.0,0.187242]
[1693499476401,1.60690951,26645.0,26644.0,0.037]
[1693499476823,1.54690951,26645.0,26644.0,0.037]
[1693499477027,1.54690951,26645.0,26644.0,0.40468085]
[1693499477028,1.52690951,26645.0,26644.0,0.40468085]
[1693499477290,1.50690951,26645.0,26644.0,0.75928085]
[1693499477501,1.52690951,26645.0,26644.0,0.90952785]
[1693499477709,1.52690951,26645.0,26644.0,0.150247]
[1693499477933,1.46690951,26636.0,26632.0,0.5176]
[1693499478145,1.46690951,26636.0,26635.0,0.36768085]
[1693499478777,1.46690951,26636.0,26635.0,0.75928085]
[1693499478778,1.48690951,26636.0,26635.0,0.75928085]
[1693499478998,1.48690951,26633.0,26632.0,0.150278]
[1693499479224,1.48690951,26633.0,26612.0,0.05958089]
[1693499479225,0.039625,26615.0,26612.0,0.05958089]
[1693499479454,0.04,26621.0,26612.0,0.10458523]
[1693499479455,1.48690951,26613.0,26612.0,0.10458523]
[1693499479669,1.48690951,26613.0,26612.0,0.38828485]
[1693499479885,0.039625,26614.0,26612.0,0.82409114]
[1693499480096,0.02,26615.0,26612.0,0.82409114]
[1693499480097,0.01920658,26615.0,26613.0,0.36768085]
[1693499480317,0.01920658,26615.0,26613.0,0.35268085]
[1693499480530,0.01920658,26615.0,26614.0,0.36768085]
[1693499480749,1.44649109,26622.0,26616.0,0.00079342]
[1693499480954,1.20314179,26626.0,26621.0,1.05948085]
[1693499481200,1.20314179,26626.0,26625.0,0.36768085]
[1693499481406,1.20314179,26626.0,26625.0,0.51475319]
[1693499481618,1.20314179,26626.0,26625.0,0.56622851]
[1693499481840,0.04,26632.0,26615.0,0.74440101]
[1693499481841,0.54419083,26622.0,26615.0,0.74440101]
[1693499482051,0.93228451,26620.0,26618.0,0.36768085]
[1693499482255,0.93228451,26620.0,26612.0,0.320804]
[1693499482256,1.22234837,26617.0,26616.0,0.36768085]
[1693499482545,0.01920658,26613.0,26612.0,0.020604]
[1693499483208,0.00920658,26613.0,26612.0,0.38828485]
[1693499483620,1.20314179,26614.0,26612.0,0.43249114]
[1693499483849,0.49801923,26617.0,26613.0,0.91714661]
[1693499485970,0.24801923,26647.0,26642.0,0.01079342]
[1693499486183,0.24801923,26644.0,26643.0,0.51475319]
[1693499486411,0.24801923,26644.0,26643.0,0.56930785]
[1693499487063,0.24801923,26647.0,26644.0,0.01079342]
[1693499487274,0.24801923,26647.0,26645.0,0.51475319]
[1693499487505,0.24801923,26647.0,26644.0,0.01079342]
[1693499487506,1.58,26647.0,26646.0,0.36768085]
[1693499487753,1.58,26647.0,26629.0,0.05]
[1693499487754,0.02,26637.0,26629.0,0.05]
[1693499487977,1.16707234,26636.0,26629.0,0.05]
[1693499488182,1.16707234,26636.0,26635.0,0.36768085]
[1693499488391,1.02,26636.0,26635.0,0.36768085]
[1693499488839,1.16707234,26636.0,26635.0,0.36768085]
[1693499489049,1.30452063,26636.0,26635.0,0.51796585]
[1693499489246,1.061,26636.0,26635.0,0.90956585]
[1693499489685,1.35023293,26636.0,26635.0,0.90956585]
[1693499489928,1.061,26636.0,26635.0,0.94656585]
[1693499490136,1.35172364,26636.0,26635.0,0.94656585]
[1693499490343,1.021,26636.0,26635.0,0.94656585]
[1693499490545,0.021,26636.0,26635.0,0.96656585]
[1693499490745,0.03205097,26636.0,26635.0,1.06322243]
[1693499491361,0.26065723,26636.0,26635.0,1.02622243]
[1693499491773,0.03205097,26636.0,26635.0,1.06322243]
[1693499491987,0.02,26641.0,26635.0,1.2040865]
[1693499492196,0.02,26641.0,26640.0,0.75928085]
[1693499492399,0.02,26641.0,26640.0,0.83520894]
[1693499492671,0.02,26641.0,26640.0,0.75928085]
[1693499492888,1.06,26642.0,26640.0,0.75928085]
[1693499492889,1.0,26642.0,26640.0,1.22014492]
[1693499493100,0.5,26647.0,26641.0,2.84017292]
[1693499493318,0.5,26647.0,26646.0,0.75928085]
[1693499493533,0.51513867,26647.0,26646.0,0.90014492]
[1693499493746,0.80296453,26647.0,26646.0,0.84929534]
[1693499493971,0.80296453,26647.0,26646.0,0.86929534]
[1693499494200,0.51513867,26647.0,26646.0,0.86929534]
[1693499494406,0.78850052,26647.0,26646.0,0.86929534]
[1693499494615,1.06,26641.0,26640.0,0.037]
[1693499494831,1.22707234,26641.0,26640.0,0.037]
[1693499495028,1.54,26637.0,26630.0,0.3916]
[1693499495277,0.14707234,26636.0,26624.0,0.2068]
[1693499495484,0.02,26639.0,26631.0,0.1859]
[1693499495682,0.02,26639.0,26631.0,0.33297234]
[1693499495888,0.56,26640.0,26630.0,0.150248]
[1693499495889,0.02,26631.0,26630.0,0.150248]
[1693499496103,0.06,26631.0,26630.0,0.150248]
[1693499496745,0.06,26631.0,26630.0,0.51792885]
[1693499496955,1.5,26632.0,26631.0,0.3916]
[1693499497160,0.02,26633.0,26631.0,0.75928085]
[1693499497365,1.52,26635.0,26632.0,0.85023374]
[1693499497572,1.52,26635.0,26634.0,0.75928085]
[1693499498015,1.52,26635.0,26634.0,0.77928085]
[1693499498224,1.58,26635.0,26634.0,0.75928085]
[1693499498440,1.6,26631.0,26630.0,0.187248]
[1693499498662,0.02,26622.0,26612.0,0.2068]
[1693499498877,0.28610316,26621.0,26619.0,0.36768085]
[1693499499083,0.02,26622.0,26620.0,0.36768085]
[1693499499291,0.02,26622.0,26621.0,0.36768085]
[1693499499501,0.32256746,26622.0,26621.0,0.75928085]
[1693499499714,0.02,26622.0,26621.0,0.75928085]
[1693499499921,0.02,26622.0,26621.0,0.83520894]
[1693499500127,1.45231083,26623.0,26621.0,0.83520894]
[1693499500381,0.02,26624.0,26622.0,0.75928085]
[1693499500587,0.02,26624.0,26623.0,0.75928085]
[1693499500796,1.06700483,26626.0,26623.0,0.75928085]
[1693499500993,0.08,26625.0,26624.0,0.09592809]
[1693499501201,0.06,26625.0,26624.0,0.46360894]
[1693499501421,0.38320693,26625.0,26624.0,0.44360894]
[1693499501653,0.38320693,26625.0,26624.0,0.36768085]
[1693499501849,0.08,26625.0,26624.0,0.36768085]
[1693499502056,0.39374684,26625.0,26624.0,0.36768085]
[1693499502262,0.3586819,26625.0,26624.0,0.36768085]
[1693499502472,0.08,26625.0,26624.0,0.36768085]
[1693499502685,1.22700483,26622.0,26621.0,0.150329]
[1693499502930,1.22700483,26622.0,26598.0,0.52193319]
[1693499502931,1.20700483,26622.0,26609.0,0.2]
[1693499503118,0.02,26613.0,26609.0,0.2]
[1693499503332,0.02,26613.0,26612.0,0.01056606]
[1693499503333,0.03,26613.0,26612.0,0.01056606]
[1693499503545,0.23672,26613.0,26612.0,0.01056606]
[1693499503758,1.06700483,26614.0,26597.0,0.2]
[1693499503759,1.02,26602.0,26598.0,0.3916]
[1693499503971,0.80153102,26602.0,26599.0,0.3916]
[1693499504186,0.62505004,26602.0,26601.0,0.75928085]
[1693499504826,0.08700483,26600.0,26599.0,0.150463]
[1693499505050,0.09700483,26600.0,26599.0,0.150463]
[1693499505258,0.21700483,26600.0,26599.0,0.187463]
[1693499505481,0.25700483,26600.0,26599.0,0.187463]
[1693499505699,0.11700483,26600.0,26599.0,0.36768085]
[1693499505912,0.13143343,26600.0,26599.0,0.40444894]
[1693499506119,0.13143343,26600.0,26599.0,0.75928085]
[1693499506120,0.08143343,26600.0,26599.0,0.75928085]
[1693499506332,0.08143343,26600.0,26599.0,0.36768085]
[1693499506550,0.01,26603.0,26599.0,0.36768085]
[1693499506551,0.10700483,26603.0,26599.0,0.51475319]
[1693499506768,0.01,26604.0,26602.0,0.36768085]
[1693499506985,0.62505004,26609.0,26604.0,0.03]
[1693499507194,0.62505004,26609.0,26605.0,0.50854492]
[1693499507195,0.02,26608.0,26605.0,0.50854492]
[1693499507401,1.04498328,26608.0,26605.0,0.50854492]
[1693499507813,0.98498328,26608.0,26607.0,0.36768085]
[1693499508106,0.98498328,26608.0,26607.0,0.66768085]
[1693499508311,0.11087591,26608.0,26607.0,0.87531301]
[1693499508521,0.26997728,26609.0,26607.0,0.75314894]
[1693499508721,0.04,26610.0,26608.0,0.32]
[1693499508940,0.063,26608.0,26607.0,0.187406]
[1693499509161,0.31007234,26608.0,26607.0,0.187406]
[1693499509393,0.31835209,26608.0,26607.0,0.55508685]
[1693499509602,0.063,26608.0,26607.0,0.61059554]
[1693499509806,0.062624,26608.0,26607.0,0.61059554]
[1693499510248,0.042624,26608.0,26607.0,0.61059554]
[1693499510678,0.042624,26608.0,26607.0,0.64214578]
[1693499510883,0.04,26608.0,26607.0,0.60514578]
[1693499511089,0.04,26610.0,26607.0,0.60514578]
[1693499511317,0.04,26608.0,26607.0,0.18195624]
[1693499511747,0.04,26608.0,26607.0,0.16195624]
[1693499511946,0.37753394,26608.0,26607.0,0.16195624]
[1693499512154,0.06,26608.0,26607.0,0.16195624]
[1693499512358,0.34982998,26608.0,26607.0,0.19895624]
[1693499512563,0.06,26608.0,26607.0,0.58653271]
[1693499512771,0.31695209,26608.0,26607.0,0.52963709]
[1693499513008,0.06,26608.0,26607.0,0.52963709]
[1693499513225,0.37033837,26608.0,26607.0,0.95823709]
[1693499513422,0.34918315,26608.0,26607.0,0.56663709]
[1693499513645,0.35007234,26608.0,26607.0,0.19895624]
[1693499513871,0.203,26608.0,26607.0,0.04855024]
[1693499514070,0.203,26608.0,26607.0,0.037]
[1693499514295,0.198,26608.0,26607.0,0.037]
[1693499514691,0.198,26608.0,26591.0,0.02]
[1693499514692,0.02,26606.0,26591.0,0.02]
[1693499514987,0.015,26597.0,26595.0,0.3916]
[1693499515211,0.015,26597.0,26595.0,0.3766]
[1693499515674,0.035,26596.0,26583.0,0.03261993]
[1693499515839,0.035,26592.0,26591.0,0.78828085]
[1693499516187,0.17707234,26592.0,26591.0,0.86710894]
[1693499516398,0.17707234,26592.0,26591.0,0.75428085]
[1693499516399,0.03,26592.0,26591.0,0.75428085]
[1693499516871,0.03,26592.0,26584.0,0.035]
[1693499516872,0.01458747,26585.0,26584.0,0.035]
[1693499517072,0.01458747,26585.0,26584.0,0.40268085]
[1693499517073,0.16165981,26585.0,26584.0,0.40268085]
[1693499517284,0.20165981,26585.0,26584.0,0.035]
[1693499517495,0.05458747,26584.0,26583.0,0.01261993]
[1693499517704,0.20165981,26584.0,26583.0,0.01261993]
[1693499518141,0.14232747,26584.0,26583.0,0.01261993]
[1693499518345,0.76504066,26584.0,26583.0,0.01261993]
[1693499518558,0.62599319,26584.0,26582.0,0.00864028]
[1693499518773,0.07458747,26577.0,26574.0,0.0021875]
[1693499518978,0.22165981,26577.0,26574.0,0.0021875]
[1693499519218,0.16,26574.0,26573.0,1.05980561]
[1693499519441,0.20165981,26574.0,26573.0,0.49600561]
[1693499519674,0.01458747,26575.0,26573.0,0.86368646]
[1693499519885,0.01458747,26575.0,26574.0,0.4540495]
[1693499520091,0.01458747,26575.0,26574.0,0.36768085]
[1693499520327,0.01458747,26578.0,26574.0,0.36768085]
[1693499520551,0.01458747,26576.0,26575.0,0.36768085]
[1693499520811,0.01458747,26584.0,26575.0,0.82854492]
[1693499521049,0.02,26587.0,26583.0,0.36768085]
[1693499521050,0.00458747,26587.0,26583.0,0.36768085]
[1693499521256,0.01458747,26586.0,26584.0,0.14086407]
[1693499521505,0.02,26590.0,26585.0,0.36768085]
[1693499521506,0.01458747,26590.0,26585.0,0.36768085]
[1693499521721,0.06948,26595.0,26585.0,0.36768085]
[1693499521722,0.01458747,26596.0,26589.0,0.36768085]
[1693499521926,0.01458747,26593.0,26591.0,0.36768085]
[1693499522135,0.01458747,26596.0,26592.0,0.97099941]
[1693499522355,0.01458747,26596.0,26593.0,0.36768085]
[1693499522560,0.01458747,26596.0,26594.0,0.52854492]
[1693499522768,0.03458747,26600.0,26595.0,0.36768085]
[1693499522981,0.00458747,26599.0,26597.0,0.36768085]
[1693499523269,0.03458747,26599.0,26597.0,0.56139941]
[1693499523484,0.03458747,26604.0,26598.0,0.52854492]
[1693499523698,0.03458747,26604.0,26602.0,0.36768085]
[1693499523911,0.03458747,26601.0,26599.0,0.14086407]
[1693499524120,0.03458747,26601.0,26600.0,0.36768085]
[1693499524340,0.03458747,26601.0,26582.0,0.04965345]
[1693499524341,0.01458747,26594.0,26582.0,0.04965345]
[1693499524556,0.00458747,26592.0,26587.0,0.2791]
[1693499524804,0.14707234,26591.0,26588.0,0.36308085]
[1693499525047,0.00458747,26589.0,26588.0,0.36308085]
[1693499525249,0.00458747,26593.0,26588.0,0.36308085]
[1693499525474,0.00458747,26595.0,26591.0,0.36768085]
[1693499525680,0.59283216,26599.0,26594.0,0.36768085]
[1693499525903,0.59283216,26599.0,26595.0,0.54531301]
[1693499525904,0.00458747,26598.0,26595.0,0.54531301]
[1693499526106,0.00458747,26598.0,26597.0,0.36768085]
[1693499526323,0.00458747,26598.0,26597.0,0.50854492]
[1693499526539,0.00458747,26598.0,26597.0,0.36768085]
[1693499526962,0.59283216,26599.0,26597.0,0.36768085]
[1693499527144,0.36883263,26599.0,26598.0,0.05676809]
[1693499527392,0.36883263,26599.0,26598.0,0.42444894]
[1693499527603,0.21151612,26599.0,26598.0,0.81604894]
[1693499528026,0.21451612,26599.0,26598.0,0.81604894]
[1693499528473,0.01,26609.0,26600.0,0.3916]
[1693499528681,0.00458747,26607.0,26606.0,0.3916]
[1693499528892,0.00458747,26607.0,26606.0,0.90014492]
[1693499529097,0.03458747,26608.0,26606.0,0.90014492]
[1693499529317,0.03458747,26608.0,26607.0,0.75928085]
[1693499529517,0.00421147,26605.0,26599.0,0.08160489]
[1693499529745,0.00421147,26600.0,26592.0,0.02]
[1693499529955,0.03421147,26605.0,26595.0,0.03578853]
[1693499530155,0.1847,26608.0,26595.0,0.02]
[1693499530156,0.00421147,26603.0,26595.0,0.02]
[1693499530368,0.03421147,26603.0,26589.0,0.06578853]
[1693499530595,0.03421147,26598.0,26596.0,0.75928085]
[1693499530846,0.14707234,26602.0,26599.0,0.3916]
[1693499531062,0.1647,26608.0,26602.0,0.3916]
[1693499531063,0.00421147,26607.0,26602.0,0.3916]
[1693499531280,0.00421147,26608.0,26607.0,0.3916]
[1693499531490,0.03621147,26608.0,26607.0,0.90635319]
[1693499531690,0.002,26608.0,26607.0,0.99698851]
[1693499531906,0.03621147,26608.0,26607.0,0.84991617]
[1693499532145,0.08544,26616.0,26607.0,0.86991617]
[1693499532390,0.08544,26616.0,26614.0,0.75928085]
[1693499532391,0.03421147,26615.0,26614.0,0.75928085]
[1693499532593,0.1503,26624.0,26614.0,0.75928085]
[1693499532594,0.03421147,26617.0,26614.0,0.92635319]
[1693499532817,0.02,26622.0,26616.0,0.36768085]
[1693499533026,0.0205,26626.0,26615.0,0.23970766]
[1693499533027,0.03421147,26624.0,26620.0,0.36768085]
[1693499533252,0.03421147,26625.0,26621.0,0.02]
[1693499533518,0.03421147,26624.0,26621.0,0.32]
[1693499533748,0.0205,26626.0,26623.0,0.75928085]
[1693499533967,0.03421147,26628.0,26625.0,0.36768085]
[1693499534181,0.03414487,26631.0,26627.0,0.36768085]
[1693499534394,0.03414487,26631.0,26629.0,0.36768085]
[1693499534601,0.03414487,26631.0,26630.0,0.16707234]
[1693499534813,0.03414487,26631.0,26630.0,0.16725968]
[1693499535647,0.05464487,26632.0,26630.0,0.22725968]
[1693499535865,0.03414487,26631.0,26630.0,0.20725968]
[1693499536070,0.0205,26632.0,26630.0,0.22725968]
[1693499536071,0.05464487,26632.0,26630.0,0.22725968]
[1693499536276,0.05464487,26632.0,26630.0,0.26425968]
[1693499536277,0.003,26631.0,26630.0,0.26425968]
[1693499536697,0.003,26631.0,26630.0,0.65585968]
[1693499536907,0.0205,26632.0,26630.0,0.61885968]
[1693499537112,0.0205,26632.0,26631.0,0.08188597]
[1693499537325,0.0205,26632.0,26631.0,0.44956682]
[1693499538164,0.04464487,26632.0,26631.0,0.36768085]
[1693499538444,0.05464487,26632.0,26631.0,0.36768085]
[1693499538603,0.05414487,26631.0,26630.0,0.04]
[1693499538812,0.05414487,26631.0,26630.0,0.40768085]
[1693499539034,0.65684572,26631.0,26630.0,0.0291]
[1693499539242,0.65684572,26631.0,26607.0,0.09063532]
[1693499539243,0.01414487,26614.0,26610.0,0.3916]
[1693499539462,0.03,26616.0,26613.0,0.36768085]
[1693499540140,0.03414487,26619.0,26614.0,0.3916]
[1693499540360,0.03414487,26619.0,26613.0,0.39768085]
[1693499540361,0.03414487,26621.0,26618.0,0.36768085]
[1693499540580,0.03414487,26621.0,26613.0,0.03]
[1693499540581,0.03,26620.0,26619.0,0.36768085]
[1693499540786,0.03,26620.0,26613.0,0.03]
[1693499540787,0.03414487,26619.0,26618.0,0.36768085]
[1693499540994,0.03414487,26614.0,26613.0,0.067]